[Event "36th European Club Cup 2021"]
[Site "Struga"]
[Date "2021.09.18"]
[Round "1.47"]
[White "Schwab, Patrick"]
[Black "Hagen, Anders Gjerdrum"]
[Result "0-1"]
[ECO "D05"]
[WhiteElo "2113"]
[BlackElo "2179"]
[Annotator "NA"]
[PlyCount "34"]
[EventDate "2021.09.18"]
[EventType "team-tourn"]
[EventCountry "MKD"]
[SourceTitle "playchess.com"]
[Source "ChessBase"]
[SourceQuality "1"]
[TimeControl "40/5400+30:1800+30"]

1. d4 {[%emt 0:00:02]} Nf6 {[%emt 0:00:15]} 2. Nf3 {[%emt 0:00:13]} e6 {
[%emt 0:00:30]} 3. e3 {[%emt 0:01:05]} c5 {[%emt 0:01:42]} 4. c3 {[%emt 0:00:
19]} b6 {[%emt 0:02:06]} 5. Bd3 {[%emt 0:02:30]} Bb7 {[%emt 0:02:20]} 6. Nbd2 {
[%emt 0:05:34]} d5 {[%emt 0:04:44]} 7. Ne5 {[%emt 0:07:02]} Be7 {[%emt 0:20:17]
} 8. Qa4+ {[%emt 0:20:11]} Nfd7 {[%emt 0:09:26]} 9. dxc5 {[%emt 0:06:25]} bxc5
{[%emt 0:09:30]} 10. e4 {[%emt 0:05:19]} O-O {[%emt 0:04:44]} 11. Ndf3 {
[%emt 0:13:08]} c4 {[%emt 0:04:33]} 12. Nxd7 {[%emt 0:08:41]} Nxd7 {[%emt 0:00:
33]} 13. Be2 {[%emt 0:03:03]} Nc5 {[%emt 0:03:25]} 14. Qc2 {[%emt 0:02:05]}
dxe4 {[%emt 0:01:50]} 15. Ne5 {[%emt 0:05:13]} Nd3+ {[%emt 0:02:10]} 16. Bxd3 {
[%emt 0:00:41]} exd3 {[%emt 0:06:26]} 17. Qa4 {[%emt 0:01:09]} Qd5 {[%emt 0:01:
04]} 0-1

[Event "36th European Club Cup 2021"]
[Site "Struga"]
[Date "2021.09.18"]
[Round "1.48"]
[White "Haarr, Jon Kristian"]
[Black "Densing, Gerd"]
[Result "1-0"]
[ECO "C02"]
[WhiteElo "2162"]
[BlackElo "1762"]
[Annotator "NA"]
[PlyCount "65"]
[EventDate "2021.09.18"]
[EventType "team-tourn"]
[EventCountry "MKD"]
[SourceTitle "playchess.com"]
[Source "ChessBase"]
[SourceQuality "1"]
[TimeControl "40/5400+30:1800+30"]

1. e4 {[%emt 0:00:03]} e6 {[%emt 0:00:06]} 2. d4 {[%emt 0:00:12]} d5 {[%emt 0:
00:07]} 3. e5 {[%emt 0:00:19]} c5 {[%emt 0:00:08]} 4. c3 {[%emt 0:00:20]} Nc6 {
[%emt 0:03:25]} 5. Nf3 {[%emt 0:01:42]} Bd7 {[%emt 0:00:24]} 6. Be2 {[%emt 0:
05:01]} cxd4 {[%emt 0:00:52]} 7. cxd4 {[%emt 0:00:13]} Bb4+ {[%emt 0:00:33]} 8.
Kf1 {[%emt 0:04:05]} Nge7 {[%emt 0:03:27]} 9. h4 {[%emt 0:01:52]} Qc7 {[%emt 0:
04:16]} 10. h5 {[%emt 0:04:34]} Rc8 {[%emt 0:00:52]} 11. a3 {[%emt 0:18:36]}
Ba5 {[%emt 0:00:11]} 12. b4 {[%emt 0:00:30]} Bb6 {[%emt 0:00:10]} 13. Bb2 {
[%emt 0:00:28]} a6 {[%emt 0:03:08]} 14. Bd3 {[%emt 0:10:21]} Nf5 {[%emt 0:02:
57]} 15. Bxf5 {[%emt 0:02:54]} exf5 {[%emt 0:00:09]} 16. Nc3 {[%emt 0:01:16]}
Ne7 {[%emt 0:01:37]} 17. Rc1 {[%emt 0:01:26]} Qb8 {[%emt 0:06:28]} 18. h6 {
[%emt 0:02:22]} g6 {[%emt 0:02:11]} 19. Qb3 {[%emt 0:07:06]} Be6 {[%emt 0:02:
06]} 20. g3 {[%emt 0:03:29]} O-O {[%emt 0:00:29]} 21. Kg2 {[%emt 0:01:05]} Qa7
{[%emt 0:03:46]} 22. Ne2 {[%emt 0:03:37]} Rc4 {[%emt 0:08:11]} 23. Nd2 {
[%emt 0:02:29]} Rxc1 {[%emt 0:00:18]} 24. Rxc1 {[%emt 0:00:13]} g5 {[%emt 0:00:
07]} 25. Qe3 {[%emt 0:01:25]} f4 {[%emt 0:02:36]} 26. gxf4 {[%emt 0:02:35]} Nf5
{[%emt 0:00:12]} 27. Qd3 {[%emt 0:01:27]} g4 {[%emt 0:04:48]} 28. Rh1 {[%emt 0:
06:49]} Kh8 {[%emt 0:00:34]} 29. Rh5 {[%emt 0:01:15]} Ne7 {[%emt 0:01:58]} 30.
f5 {[%emt 0:00:17]} Bd7 {[%emt 0:00:22]} 31. Ng3 {[%emt 0:01:36]} Bb5 {[%emt 0:
01:05]} 32. Qe3 {[%emt 0:00:33]} Nc6 {[%emt 0:01:34]} 33. Qg5 {[%emt 0:16:50]}
1-0

[Event "36th European Club Cup 2021"]
[Site "Struga"]
[Date "2021.09.19"]
[Round "2.12"]
[White "Lagerman, Robert"]
[Black "Goganov, Aleksey"]
[Result "1/2-1/2"]
[ECO "B51"]
[WhiteElo "2300"]
[BlackElo "2559"]
[Annotator "ChessBase"]
[PlyCount "60"]
[EventDate "2021.09.18"]
[EventType "team-tourn"]
[EventCountry "MKD"]
[SourceTitle "playchess.com"]
[Source "ChessBase"]
[SourceQuality "1"]
[TimeControl "40/5400+30:1800+30"]

1. e4 {[%emt 0:00:04]} c5 {[%emt 0:00:07]} 2. Nf3 {[%emt 0:00:26]} d6 {[%emt 0:
00:07]} 3. Bb5+ {[%emt 0:00:27]} Nd7 {[%emt 0:00:09]} 4. d4 {[%emt 0:00:25]}
cxd4 {[%emt 0:00:15]} 5. Qxd4 {[%emt 0:00:29]} a6 {[%emt 0:00:37]} 6. Bxd7+ {
[%emt 0:00:25]} Bxd7 {[%emt 0:00:07]} 7. c4 {[%emt 0:00:09]} Nf6 {[%emt 0:11:
06]} 8. O-O {[%emt 0:03:04]} g6 {[%emt 0:00:57]} 9. b3 {[%emt 0:06:15]} Bg7 {
[%emt 0:00:12]} 10. Bb2 {[%emt 0:00:02]} O-O {[%emt 0:02:16]} 11. Nc3 {[%emt 0:
00:43]} b5 {[%emt 0:14:45]} 12. cxb5 {[%emt 0:03:14]} axb5 {[%emt 0:01:16]} 13.
Nd5 {[%emt 0:03:36]} Bg4 {[%emt 0:10:33]} 14. Nxf6+ {[%emt 0:06:10]} exf6 {
[%emt 0:00:12]} 15. Rfd1 {[%emt 0:08:56]} Ra6 {[%emt 0:03:58]} 16. a4 {[%emt 0:
03:24]} bxa4 {[%emt 0:01:02]} 17. Rxa4 {[%emt 0:01:33]} Rb6 {[%emt 0:10:06]}
18. Rd3 {[%emt 0:20:56]} Qb8 {[%emt 0:11:34]} 19. Nd2 {[%emt 0:03:27]} Be6 {
[%emt 0:00:11]} 20. Ra8 {[%emt 0:17:49]} Qxa8 {[%emt 0:00:35]} 21. Qxb6 {
[%emt 0:00:02]} Qa2 {[%emt 0:04:58]} 22. Qd4 {[%emt 0:02:27]} Rc8 {[%emt 0:09:
36]} 23. Rc3 {[%emt 0:01:20]} Ra8 {[%emt 0:00:06]} 24. Rc6 {[%emt 0:02:16]} Rd8
{[%emt 0:02:25]} 25. Qb6 {[%emt 0:03:26]} Re8 {[%emt 0:00:10]} 26. Qd4 {
[%emt 0:00:48]} Rd8 {[%emt 0:03:29]} 27. Qb6 {[%emt 0:00:07]} Rf8 {[%emt 0:01:
37]} 28. Qd4 {[%emt 0:00:34]} Rd8 {[%emt 0:01:20]} 29. Qb6 {[%emt 0:00:03]} Rf8
{[%emt 0:00:09]} 30. Qd4 {[%emt 0:00:02]} Rd8 {[%emt 0:11:35]} 1/2-1/2

[Event "36th European Club Cup 2021"]
[Site "Struga"]
[Date "2021.09.19"]
[Round "2.23"]
[White "Alekseev, Evgeny"]
[Black "Arman, Deniz"]
[Result "1-0"]
[ECO "B31"]
[WhiteElo "2610"]
[BlackElo "2336"]
[Annotator "ChessBase"]
[PlyCount "89"]
[EventDate "2021.09.18"]
[EventType "team-tourn"]
[EventCountry "MKD"]
[SourceTitle "playchess.com"]
[Source "ChessBase"]
[SourceQuality "1"]
[TimeControl "40/5400+30:1800+30"]

1. e4 {[%emt 0:00:04]} c5 {[%emt 0:00:13]} 2. Nf3 {[%emt 0:00:11]} Nc6 {
[%emt 0:00:30]} 3. Bb5 {[%emt 0:02:32]} g6 {[%emt 0:00:07]} 4. O-O {[%emt 0:01:
50]} Bg7 {[%emt 0:00:06]} 5. c3 {[%emt 0:00:49]} Nf6 {[%emt 0:04:05]} 6. Re1 {
[%emt 0:01:28]} O-O {[%emt 0:00:26]} 7. h3 {[%emt 0:00:28]} d5 {[%emt 0:11:46]}
8. e5 {[%emt 0:03:08]} Ne8 {[%emt 0:02:17]} 9. Bxc6 {[%emt 0:13:08]} bxc6 {
[%emt 0:00:34]} 10. d4 {[%emt 0:00:02]} c4 {[%emt 0:30:40]} 11. b3 {[%emt 0:02:
45]} Nc7 {[%emt 0:03:40]} 12. Nbd2 {[%emt 0:06:44]} cxb3 {[%emt 0:14:10]} 13.
axb3 {[%emt 0:02:12]} Ne6 {[%emt 0:02:36]} 14. b4 {[%emt 0:01:03]} f5 {[%emt 0:
07:44]} 15. exf6 {[%emt 0:04:56]} exf6 {[%emt 0:00:24]} 16. Nb3 {[%emt 0:00:19]
} Re8 {[%emt 0:01:15]} 17. Be3 {[%emt 0:04:34]} g5 {[%emt 0:01:02]} 18. Qd3 {
[%emt 0:12:01]} Re7 {[%emt 0:03:41]} 19. Bd2 {[%emt 0:09:23]} Bd7 {[%emt 0:00:
24]} 20. Ra5 {[%emt 0:06:10]} Be8 {[%emt 0:00:57]} 21. Nc5 {[%emt 0:00:27]} Nc7
{[%emt 0:01:39]} 22. Qf1 {[%emt 0:02:06]} Nb5 {[%emt 0:04:09]} 23. Raa1 {
[%emt 0:02:07]} Bf7 {[%emt 0:00:30]} 24. Nh2 {[%emt 0:00:48]} Rxe1 {[%emt 0:01:
52]} 25. Rxe1 {[%emt 0:00:27]} Qd6 {[%emt 0:03:08]} 26. h4 {[%emt 0:05:08]} h6
{[%emt 0:02:57]} 27. hxg5 {[%emt 0:00:26]} fxg5 {[%emt 0:01:59]} 28. f4 {
[%emt 0:03:37]} gxf4 {[%emt 0:00:04]} 29. Bxf4 {[%emt 0:01:24]} Qg6 {[%emt 0:
00:45]} 30. Re3 {[%emt 0:08:03]} Qc2 {[%emt 0:00:38]} 31. Be5 {[%emt 0:04:01]}
Rf8 {[%emt 0:01:06]} 32. Nd7 {[%emt 0:00:19]} Rd8 {[%emt 0:00:29]} 33. Bxg7 {
[%emt 0:02:04]} Rxd7 {[%emt 0:00:12]} 34. Be5 {[%emt 0:00:54]} Kf8 {[%emt 0:00:
40]} 35. Qf6 {[%emt 0:01:06]} Qg6 {[%emt 0:00:40]} 36. Qh8+ {[%emt 0:00:19]}
Bg8 {[%emt 0:00:04]} 37. Rg3 {[%emt 0:00:21]} Qe6 {[%emt 0:00:27]} 38. Rf3+ {
[%emt 0:00:30]} Rf7 {[%emt 0:00:40]} 39. Qg7+ {[%emt 0:01:08]} Ke7 {[%emt 0:00:
04]} 40. Qxg8 {[%emt 0:00:00]} Rxf3 {[%emt 0:00:00]} 41. Qxe6+ {[%emt 0:00:33]}
Kxe6 {[%emt 0:00:08]} 42. Nxf3 {[%emt 0:00:19]} Nxc3 {[%emt 0:00:05]} 43. Bg7 {
[%emt 0:00:16]} Na2 {[%emt 0:00:23]} 44. Bf8 {[%emt 0:00:13]} Kf5 {[%emt 0:00:
07]} 45. Ne5 {[%emt 0:00:13]} 1-0

[Event "36th European Club Cup 2021"]
[Site "Struga"]
[Date "2021.09.19"]
[Round "2.24"]
[White "Thorn, Eric"]
[Black "Kornev, Alexei"]
[Result "1/2-1/2"]
[ECO "E92"]
[WhiteElo "2292"]
[BlackElo "2500"]
[Annotator "ChessBase"]
[PlyCount "155"]
[EventDate "2021.09.18"]
[EventType "team-tourn"]
[EventCountry "MKD"]
[SourceTitle "playchess.com"]
[Source "ChessBase"]
[SourceQuality "1"]
[TimeControl "40/5400+30:1800+30"]

1. d4 {[%emt 0:00:16]} Nf6 {[%emt 0:00:16]} 2. c4 {[%emt 0:00:54]} g6 {[%emt 0:
00:27]} 3. Nc3 {[%emt 0:00:08]} Bg7 {[%emt 0:00:10]} 4. e4 {[%emt 0:00:11]} d6
{[%emt 0:00:07]} 5. Nf3 {[%emt 0:00:07]} O-O {[%emt 0:00:06]} 6. Be2 {[%emt 0:
00:10]} e5 {[%emt 0:00:11]} 7. d5 {[%emt 0:00:27]} a5 {[%emt 0:00:21]} 8. Bg5 {
[%emt 0:01:14]} h6 {[%emt 0:00:12]} 9. Be3 {[%emt 0:00:10]} Ng4 {[%emt 0:00:34]
} 10. Bc1 {[%emt 0:00:09]} f5 {[%emt 0:01:09]} 11. exf5 {[%emt 0:00:32]} gxf5 {
[%emt 0:00:12]} 12. g3 {[%emt 0:00:16]} e4 {[%emt 0:05:47]} 13. Nh4 {[%emt 0:
00:46]} Nd7 {[%emt 0:09:53]} 14. O-O {[%emt 0:01:48]} Nc5 {[%emt 0:14:11]} 15.
f3 {[%emt 0:01:03]} Ne5 {[%emt 0:03:12]} 16. fxe4 {[%emt 0:12:26]} fxe4 {
[%emt 0:03:02]} 17. Rxf8+ {[%emt 0:06:22]} Qxf8 {[%emt 0:00:43]} 18. Be3 {
[%emt 0:00:05]} Qe7 {[%emt 0:11:35]} 19. Bxc5 {[%emt 0:23:03]} dxc5 {[%emt 0:
00:10]} 20. Qc2 {[%emt 0:08:28]} Ng4 {[%emt 0:12:27]} 21. Bxg4 {[%emt 0:15:17]}
Bxg4 {[%emt 0:00:19]} 22. Nxe4 {[%emt 0:06:47]} Bd4+ {[%emt 0:18:54]} 23. Kg2 {
[%emt 0:01:07]} Qg7 {[%emt 0:07:19]} 24. h3 {[%emt 0:01:13]} Bd7 {[%emt 0:00:
25]} 25. Rf1 {[%emt 0:01:15]} Rf8 {[%emt 0:00:55]} 26. Rxf8+ {[%emt 0:03:38]}
Qxf8 {[%emt 0:00:05]} 27. b3 {[%emt 0:02:04]} b6 {[%emt 0:02:44]} 28. Qe2 {
[%emt 0:01:00]} Qf7 {[%emt 0:00:47]} 29. Qf3 {[%emt 0:04:40]} a4 {[%emt 0:00:
06]} 30. g4 {[%emt 0:01:23]} Qxf3+ {[%emt 0:00:17]} 31. Kxf3 {[%emt 0:01:09]}
Be5 {[%emt 0:01:54]} 32. Ng6 {[%emt 0:03:00]} Bb2 {[%emt 0:00:15]} 33. Nf4 {
[%emt 0:00:52]} Kf7 {[%emt 0:00:44]} 34. h4 {[%emt 0:02:47]} axb3 {[%emt 0:00:
37]} 35. axb3 {[%emt 0:00:03]} Be5 {[%emt 0:00:16]} 36. g5 {[%emt 0:02:02]}
hxg5 {[%emt 0:00:28]} 37. Nxg5+ {[%emt 0:00:26]} Kf6 {[%emt 0:00:57]} 38. Nge6
{[%emt 0:00:49]} Kf5 {[%emt 0:04:38]} 39. h5 {[%emt 0:00:33]} c6 {[%emt 0:00:
50]} 40. h6 {[%emt 0:00:00]} cxd5 {[%emt 0:00:00]} 41. cxd5 {[%emt 0:06:08]}
Bc8 {[%emt 0:02:23]} 42. h7 {[%emt 0:02:19]} Bb7 {[%emt 0:07:30]} 43. Nd8 {
[%emt 0:01:32]} Ba8 {[%emt 0:00:43]} 44. Nc6 {[%emt 0:08:26]} Ba1 {[%emt 0:02:
40]} 45. Ne7+ {[%emt 0:07:40]} Kg5 {[%emt 0:00:18]} 46. Ke4 {[%emt 0:01:41]}
Kh6 {[%emt 0:03:19]} 47. Neg6 {[%emt 0:03:02]} Kxh7 {[%emt 0:00:17]} 48. Nf8+ {
[%emt 0:00:03]} Kg8 {[%emt 0:00:58]} 49. Nd7 {[%emt 0:00:06]} b5 {[%emt 0:01:
14]} 50. Nxc5 {[%emt 0:00:07]} Kf7 {[%emt 0:00:10]} 51. Na6 {[%emt 0:01:06]}
Bb7 {[%emt 0:00:42]} 52. Nc7 {[%emt 0:01:07]} b4 {[%emt 0:00:46]} 53. Nd3 {
[%emt 0:00:13]} Ke7 {[%emt 0:02:01]} 54. Nc5 {[%emt 0:01:30]} Kd6 {[%emt 0:03:
55]} 55. Nxb7+ {[%emt 0:01:58]} Kxc7 {[%emt 0:00:05]} 56. Na5 {[%emt 0:01:26]}
Kd6 {[%emt 0:00:35]} 57. Nc4+ {[%emt 0:00:44]} Kc5 {[%emt 0:00:19]} 58. Ne5 {
[%emt 0:00:36]} Bc3 {[%emt 0:00:34]} 59. Nd3+ {[%emt 0:00:34]} Kd6 {[%emt 0:00:
07]} 60. Nf4 {[%emt 0:00:42]} Bd2 {[%emt 0:00:30]} 61. Ne2 {[%emt 0:00:30]} Bc3
{[%emt 0:01:11]} 62. Ng3 {[%emt 0:00:38]} Kc5 {[%emt 0:00:49]} 63. Nf5 {
[%emt 0:00:16]} Bf6 {[%emt 0:00:16]} 64. Nh6 {[%emt 0:00:46]} Bc3 {[%emt 0:00:
23]} 65. Nf7 {[%emt 0:00:21]} Bb2 {[%emt 0:02:25]} 66. d6 {[%emt 0:00:14]} Kc6
{[%emt 0:00:41]} 67. Ne5+ {[%emt 0:00:05]} Kb7 {[%emt 0:03:35]} 68. Kd5 {
[%emt 0:00:07]} Bc3 {[%emt 0:00:56]} 69. Ke6 {[%emt 0:00:13]} Be1 {[%emt 0:00:
11]} 70. Kd7 {[%emt 0:01:22]} Bh4 {[%emt 0:00:27]} 71. Nd3 {[%emt 0:00:24]} Kb6
{[%emt 0:00:17]} 72. Nxb4 {[%emt 0:01:00]} Kc5 {[%emt 0:00:12]} 73. Na6+ {
[%emt 0:00:40]} Kb5 {[%emt 0:00:30]} 74. Nc7+ {[%emt 0:00:39]} Kb4 {[%emt 0:00:
07]} 75. Nd5+ {[%emt 0:00:14]} Kxb3 {[%emt 0:00:50]} 76. Ne7 {[%emt 0:00:35]}
Bg3 {[%emt 0:00:07]} 77. Nf5 {[%emt 0:00:20]} Bxd6 {[%emt 0:00:06]} 78. Nxd6 {
[%emt 0:00:04]} 1/2-1/2

[Event "36th European Club Cup 2021"]
[Site "Struga"]
[Date "2021.09.19"]
[Round "2.29"]
[White "Dardha, Arben"]
[Black "Alonso Rosell, Alvar"]
[Result "0-1"]
[ECO "C47"]
[WhiteElo "2253"]
[BlackElo "2566"]
[Annotator "ChessBase"]
[PlyCount "74"]
[EventDate "2021.09.18"]
[EventType "team-tourn"]
[EventCountry "MKD"]
[SourceTitle "playchess.com"]
[Source "ChessBase"]
[SourceQuality "1"]
[TimeControl "40/5400+30:1800+30"]

1. e4 {[%emt 0:00:23]} e5 {[%emt 0:00:10]} 2. Nf3 {[%emt 0:00:19]} Nc6 {
[%emt 0:00:05]} 3. Nc3 {[%emt 0:00:09]} Nf6 {[%emt 0:00:15]} 4. d4 {[%emt 0:00:
05]} exd4 {[%emt 0:00:11]} 5. Nxd4 {[%emt 0:00:05]} Bb4 {[%emt 0:00:36]} 6.
Nxc6 {[%emt 0:00:13]} bxc6 {[%emt 0:00:02]} 7. Bd3 {[%emt 0:00:10]} O-O {
[%emt 0:00:26]} 8. O-O {[%emt 0:00:08]} d5 {[%emt 0:00:03]} 9. exd5 {[%emt 0:
00:10]} cxd5 {[%emt 0:04:33]} 10. Bg5 {[%emt 0:01:03]} c6 {[%emt 0:00:09]} 11.
Qf3 {[%emt 0:00:06]} h6 {[%emt 0:00:27]} 12. Bxf6 {[%emt 0:00:19]} Qxf6 {
[%emt 0:00:02]} 13. Qxf6 {[%emt 0:00:09]} gxf6 {[%emt 0:00:02]} 14. Ne2 {
[%emt 0:00:12]} Rb8 {[%emt 0:01:07]} 15. Rab1 {[%emt 0:09:30]} Re8 {[%emt 0:07:
09]} 16. Ng3 {[%emt 0:12:53]} Re5 {[%emt 0:10:53]} 17. Rfd1 {[%emt 0:15:41]}
Be7 {[%emt 0:17:28]} 18. Kf1 {[%emt 0:15:03]} Rb4 {[%emt 0:18:42]} 19. Re1 {
[%emt 0:14:14]} Bc5 {[%emt 0:08:38]} 20. Re2 {[%emt 0:11:11]} Kf8 {[%emt 0:15:
45]} 21. Ke1 {[%emt 0:12:56]} Rg5 {[%emt 0:00:44]} 22. Kd2 {[%emt 0:01:45]} Rh4
{[%emt 0:00:12]} 23. Rbe1 {[%emt 0:00:43]} Bd7 {[%emt 0:01:12]} 24. Rh1 {
[%emt 0:03:25]} f5 {[%emt 0:00:37]} 25. Nf1 {[%emt 0:01:35]} Rxg2 {[%emt 0:00:
19]} 26. Ne3 {[%emt 0:00:27]} Rg5 {[%emt 0:00:07]} 27. f3 {[%emt 0:00:20]} f4 {
[%emt 0:01:17]} 28. Ng2 {[%emt 0:00:40]} Rh3 {[%emt 0:00:28]} 29. Nxf4 {
[%emt 0:00:28]} Rxf3 {[%emt 0:00:07]} 30. h4 {[%emt 0:00:23]} Rg4 {[%emt 0:00:
56]} 31. Ng2 {[%emt 0:00:26]} Rgg3 {[%emt 0:00:50]} 32. Ne1 {[%emt 0:00:35]}
Rf4 {[%emt 0:00:07]} 33. c3 {[%emt 0:00:32]} Bg4 {[%emt 0:00:17]} 34. Reh2 {
[%emt 0:00:40]} Bg1 {[%emt 0:00:19]} 35. Ng2 {[%emt 0:00:30]} Rf2+ {[%emt 0:00:
24]} 36. Ke1 {[%emt 0:00:04]} Rxd3 {[%emt 0:00:12]} 37. Rxg1 {[%emt 0:00:13]}
Re2+ {[%emt 0:00:05]} 0-1

[Event "36th European Club Cup 2021"]
[Site "Struga"]
[Date "2021.09.19"]
[Round "2.30"]
[White "Henderson de La Fuente, Lance"]
[Black "Jeitz, Christian"]
[Result "1-0"]
[ECO "D02"]
[WhiteElo "2491"]
[BlackElo "2231"]
[Annotator "ChessBase"]
[PlyCount "57"]
[EventDate "2021.09.18"]
[EventType "team-tourn"]
[EventCountry "MKD"]
[SourceTitle "playchess.com"]
[Source "ChessBase"]
[SourceQuality "1"]
[TimeControl "40/5400+30:1800+30"]

1. d4 {[%emt 0:00:16]} Nf6 {[%emt 0:00:06]} 2. Nf3 {[%emt 0:00:09]} g6 {
[%emt 0:00:09]} 3. Nbd2 {[%emt 0:00:38]} d5 {[%emt 0:00:14]} 4. b4 {[%emt 0:00:
18]} Bg7 {[%emt 0:00:17]} 5. e3 {[%emt 0:00:12]} O-O {[%emt 0:00:12]} 6. Bb2 {
[%emt 0:00:48]} a5 {[%emt 0:01:04]} 7. b5 {[%emt 0:00:10]} c6 {[%emt 0:02:13]}
8. a4 {[%emt 0:04:13]} Nbd7 {[%emt 0:07:29]} 9. c4 {[%emt 0:17:47]} c5 {
[%emt 0:04:07]} 10. Be2 {[%emt 0:00:26]} cxd4 {[%emt 0:02:21]} 11. Bxd4 {
[%emt 0:01:38]} Re8 {[%emt 0:08:52]} 12. O-O {[%emt 0:02:48]} e5 {[%emt 0:07:
10]} 13. Bb2 {[%emt 0:00:17]} e4 {[%emt 0:00:36]} 14. Nd4 {[%emt 0:00:11]} dxc4
{[%emt 0:08:03]} 15. Nxc4 {[%emt 0:00:23]} Nb6 {[%emt 0:01:39]} 16. Qb3 {
[%emt 0:01:27]} Bg4 {[%emt 0:10:18]} 17. Rfd1 {[%emt 0:02:52]} Bxe2 {[%emt 0:
13:58]} 18. Nxe2 {[%emt 0:00:10]} Qc7 {[%emt 0:00:22]} 19. Nd6 {[%emt 0:07:51]}
Re7 {[%emt 0:05:02]} 20. Rac1 {[%emt 0:00:35]} Qb8 {[%emt 0:00:13]} 21. Ng3 {
[%emt 0:05:56]} h5 {[%emt 0:08:45]} 22. Bxf6 {[%emt 0:03:42]} Bxf6 {[%emt 0:00:
11]} 23. Ngxe4 {[%emt 0:00:16]} Be5 {[%emt 0:00:24]} 24. f4 {[%emt 0:01:49]}
Bxd6 {[%emt 0:00:08]} 25. Rxd6 {[%emt 0:00:40]} Rxe4 {[%emt 0:06:41]} 26. Rxg6+
{[%emt 0:00:06]} Kf8 {[%emt 0:00:08]} 27. Rh6 {[%emt 0:02:04]} Qa7 {[%emt 0:01:
51]} 28. Rc7 {[%emt 0:04:26]} Nd5 {[%emt 0:05:47]} 29. b6 {[%emt 0:00:49]} 1-0

[Event "36th European Club Cup 2021"]
[Site "Struga"]
[Date "2021.09.19"]
[Round "2.33"]
[White "Papp, Gabor"]
[Black "Mikhalchishin, Adrian"]
[Result "1/2-1/2"]
[ECO "C92"]
[WhiteElo "2599"]
[BlackElo "2455"]
[Annotator "ChessBase"]
[PlyCount "120"]
[EventDate "2021.09.18"]
[EventType "team-tourn"]
[EventCountry "MKD"]
[SourceTitle "playchess.com"]
[Source "ChessBase"]
[SourceQuality "1"]
[TimeControl "40/5400+30:1800+30"]

1. e4 {[%emt 0:00:04]} e5 {[%emt 0:00:29]} 2. Nf3 {[%emt 0:00:06]} Nc6 {
[%emt 0:00:11]} 3. Bb5 {[%emt 0:00:10]} a6 {[%emt 0:00:08]} 4. Ba4 {[%emt 0:00:
04]} Nf6 {[%emt 1:31:42]} 5. O-O {[%emt 0:00:26]} Be7 {[%emt 0:00:00]} 6. Re1 {
[%emt 0:00:30]} b5 {[%emt 0:00:00]} 7. Bb3 {[%emt 0:00:04]} d6 {[%emt 0:00:00]}
8. c3 {[%emt 0:00:54]} O-O {[%emt 0:00:00]} 9. h3 {[%emt 0:00:39]} Be6 {
[%emt 0:00:00]} 10. d3 {[%emt 0:02:25]} Bxb3 {[%emt 0:00:00]} 11. axb3 {
[%emt 0:00:55]} d5 {[%emt 0:00:00]} 12. Nbd2 {[%emt 0:02:22]} Re8 {[%emt 0:00:
00]} 13. Qc2 {[%emt 0:03:02]} b4 {[%emt 0:00:00]} 14. Nf1 {[%emt 0:13:12]} h6 {
[%emt 0:00:00]} 15. Ng3 {[%emt 0:04:48]} Bf8 {[%emt 0:00:00]} 16. Nf5 {[%emt 0:
14:32]} Qd7 {[%emt 0:06:00]} 17. Be3 {[%emt 0:06:23]} a5 {[%emt 0:00:00]} 18.
Rad1 {[%emt 0:04:35]} Kh7 {[%emt 0:00:00]} 19. Bc1 {[%emt 0:06:04]} g6 {
[%emt 0:00:00]} 20. Ng3 {[%emt 0:07:06]} Bg7 {[%emt 0:00:00]} 21. h4 {[%emt 0:
07:18]} Rab8 {[%emt 0:00:00]} 22. h5 {[%emt 0:00:51]} bxc3 {[%emt 0:00:00]} 23.
bxc3 {[%emt 0:00:52]} Qe6 {[%emt 0:00:00]} 24. hxg6+ {[%emt 0:00:34]} fxg6 {
[%emt 0:00:00]} 25. d4 {[%emt 0:06:01]} exd4 {[%emt 0:00:00]} 26. cxd4 {
[%emt 0:01:16]} dxe4 {[%emt 0:01:54]} 27. d5 {[%emt 0:02:00]} Nb4 {[%emt 0:00:
33]} 28. Qxc7 {[%emt 0:00:06]} Qb6 {[%emt 0:01:29]} 29. Qxb6 {[%emt 0:01:19]}
Rxb6 {[%emt 0:02:34]} 30. d6 {[%emt 0:00:16]} Rd8 {[%emt 0:00:00]} 31. Nxe4 {
[%emt 0:03:32]} Nxe4 {[%emt 0:00:00]} 32. Rxe4 {[%emt 0:00:03]} Rbxd6 {[%emt 0:
00:00]} 33. Rxd6 {[%emt 0:00:02]} Rxd6 {[%emt 0:00:00]} 34. Bd2 {[%emt 0:00:05]
} Rb6 {[%emt 0:00:14]} 35. Nd4 {[%emt 0:03:39]} Bxd4 {[%emt 0:01:12]} 36. Rxd4
{[%emt 0:00:04]} g5 {[%emt 0:00:03]} 37. Rd7+ {[%emt 0:02:15]} Kg6 {[%emt 0:00:
02]} 38. g4 {[%emt 0:00:04]} h5 {[%emt 0:00:41]} 39. Be3 {[%emt 0:01:52]} Rc6 {
[%emt 0:01:51]} 40. gxh5+ {[%emt 0:00:00]} Kxh5 {[%emt 0:00:00]} 41. Rg7 {
[%emt 0:08:45]} Rg6 {[%emt 0:31:57]} 42. Ra7 {[%emt 0:05:43]} Nc2 {[%emt 0:00:
00]} 43. Bc5 {[%emt 0:01:23]} Na1 {[%emt 0:00:00]} 44. Rb7 {[%emt 0:01:57]} Rc6
{[%emt 0:00:00]} 45. Be3 {[%emt 0:05:23]} Rc3 {[%emt 0:00:00]} 46. Rb5 {
[%emt 0:00:04]} Nxb3 {[%emt 0:00:00]} 47. Rxg5+ {[%emt 0:00:07]} Kh4 {[%emt 0:
00:00]} 48. Rb5 {[%emt 0:00:22]} Kh3 {[%emt 0:00:00]} 49. Kf1 {[%emt 0:02:26]}
Rd3 {[%emt 0:00:00]} 50. Ke2 {[%emt 0:10:18]} Rc3 {[%emt 0:00:00]} 51. Kf1 {
[%emt 0:01:45]} Rd3 {[%emt 0:00:00]} 52. Ke2 {[%emt 0:00:04]} Rc3 {[%emt 0:00:
00]} 53. Rd5 {[%emt 0:01:36]} a4 {[%emt 0:00:00]} 54. Rh5+ {[%emt 0:03:49]} Kg4
{[%emt 0:00:03]} 55. Rg5+ {[%emt 0:00:04]} Kh4 {[%emt 0:00:42]} 56. Rb5 {
[%emt 0:01:18]} a3 {[%emt 0:01:53]} 57. Rb4+ {[%emt 0:00:56]} Kh5 {[%emt 0:02:
32]} 58. Ra4 {[%emt 0:00:02]} a2 {[%emt 0:00:25]} 59. Rxa2 {[%emt 0:00:09]}
Nc1+ {[%emt 0:00:01]} 60. Bxc1 {[%emt 0:00:06]} Rxc1 {[%emt 0:00:01]} 1/2-1/2